fUSD/lending_fUSD_20250428
["ID","MTS","AMOUNT","RATE_DAILY","PERIOD"]
[359228097,1745846302056,150.0,0.00039178,30]
[359228098,1745846302244,150.0,0.00039178,30]
[359228099,1745846302723,214.40365349,0.00039178,30]
[359228100,1745846304611,150.0,0.00039178,30]
[359228101,1745846304801,150.0,0.00039178,30]
[359228102,1745846304981,150.0,0.00039178,30]
[359228103,1745846305164,150.0,0.00039178,30]
[359228104,1745846305426,150.0,0.00039178,30]
[359228105,1745846305625,205.42977538,0.00039178,30]
[359228106,1745846306415,150.0,0.00039178,30]
[359228107,1745846306597,200.86811545,0.00039178,30]
[359228108,1745846308059,151.20851112,0.00039178,30]
[359228109,1745846309254,150.0,0.00039178,30]
[359228110,1745846309442,150.0,0.00039178,30]
[359228111,1745846309779,205.12022661,0.00039178,30]
[359228112,1745846310525,150.0,0.00039178,30]
[359228113,1745846310696,204.00202575,0.00039178,30]
[359228114,1745846311739,150.0,0.00039178,30]
[359228115,1745846311927,150.0,0.00039178,30]
[359228116,1745846312116,155.91469509,0.00039178,30]
[359228117,1745846313268,500.0,0.00039178,30]
[359228118,1745846313329,500.0,0.00039178,30]
[359228119,1745846313405,500.0,0.00039178,30]
[359228120,1745846313521,500.0,0.00039178,30]
[359228121,1745846313713,500.0,0.00039178,30]
[359228122,1745846313889,500.0,0.00039178,30]
[359228123,1745846314077,500.0,0.00039178,30]
[359228124,1745846314594,373.64660125,0.00039178,30]
[359228125,1745846315714,152.33982239,0.00039178,30]
[359228126,1745846319327,150.0,0.00039178,30]
[359228127,1745846319477,150.0,0.00039178,30]
[359228128,1745846319643,157.6926218,0.00039178,30]
[359228129,1745846320498,150.0,0.00039178,30]
[359228130,1745846321563,500.0,0.00039178,30]
[359228131,1745846321664,500.0,0.00039178,30]
[359228132,1745846322085,353.16734134,0.00039178,30]
[359228133,1745846323659,851.0,0.00039178,30]
[359228134,1745846323688,153.08584383,0.00039178,30]
[359228135,1745846323786,851.0,0.00039178,30]
[359228136,1745846323928,851.0,0.00039178,30]
[359228137,1745846324017,851.0,0.00039178,30]
[359228138,1745846324108,851.0,0.00039178,30]
[359228139,1745846324222,851.0,0.00039178,30]
[359228140,1745846324369,851.0,0.00039178,30]
[359228141,1745846324542,851.0,0.00039178,30]
[359228142,1745846324916,851.0,0.00039178,30]
[359228143,1745846325031,851.0,0.00039178,30]
[359228144,1745846325307,851.0,0.00039178,30]
[359228145,1745846325715,851.0,0.00039178,30]
[359228146,1745846325907,851.0,0.00039178,30]
[359228147,1745846326318,851.0,0.00039178,30]
[359228148,1745846326398,851.0,0.00039178,30]
[359228149,1745846326474,851.0,0.00039178,30]
[359228150,1745846326689,851.0,0.00039178,30]
[359228151,1745846327001,851.0,0.00039178,30]
[359228152,1745846327269,851.0,0.00039178,30]
[359228153,1745846327460,851.0,0.00039178,30]
[359228154,1745846327735,851.0,0.00039178,30]
[359228155,1745846328125,851.0,0.00039178,30]
[359228156,1745846328292,851.0,0.00039178,30]
[359228157,1745846328493,858.12801868,0.00039178,30]
[359228158,1745846344702,201.86532997,0.00039178,30]
[359228159,1745846346282,500.0,0.00039178,30]
[359228160,1745846346472,500.0,0.00039178,30]
[359228161,1745846346905,500.0,0.00039178,30]
[359228162,1745846347107,500.0,0.00039178,30]
[359228163,1745846347364,381.13834931,0.00039178,30]
[359228164,1745846348858,150.0,0.00039178,30]
[359228165,1745846349027,255.15660397,0.00039178,30]
[359228166,1745846350136,150.0,0.00039178,30]
[359228167,1745846350362,150.0,0.00039178,30]
[359228168,1745846350585,150.0,0.00039178,30]
[359228169,1745846350812,213.73065524,0.00039178,30]
[359228170,1745846352136,150.0,0.00039178,30]
[359228171,1745846352331,150.0,0.00039178,30]
[359228172,1745846352707,150.0,0.00039178,30]
[359228173,1745846352888,276.36621046,0.00039178,30]
[359228174,1745846354588,155.381931,0.00039178,30]
[359228175,1745846355882,154.12272035,0.00039178,30]
[359228176,1745846357064,150.0,0.00039178,30]
[359228177,1745846357241,153.13524837,0.00039178,30]
[359228178,1745846407285,150.0,0.00039178,30]
[359228179,1745846407967,150.0,0.00039178,30]
[359228180,1745846409009,150.0,0.00039178,30]
[359228181,1745846409391,150.0,0.00039178,30]
[359228182,1745846411704,194.64566393,0.00039178,30]
[359228183,1745846412802,444.0,0.00039178,30]
[359228184,1745846413016,444.0,0.00039178,30]
[359228185,1745846413213,444.0,0.00039178,30]
[359228186,1745846413555,444.0,0.00039178,30]
[359228187,1745846413984,444.0,0.00039178,30]
[359228188,1745846414194,444.0,0.00039178,30]
[359228189,1745846414366,444.0,0.00039178,30]
[359228190,1745846414567,444.0,0.00039178,30]
[359228191,1745846414770,444.0,0.00039178,30]
[359228192,1745846414976,444.0,0.00039178,30]
[359228193,1745846415250,444.0,0.00039178,30]
[359228194,1745846415489,444.0,0.00039178,30]
[359228195,1745846415665,444.0,0.00039178,30]
[359228196,1745846415789,444.0,0.00039178,30]
[359228197,1745846415999,444.0,0.00039178,30]
[359228198,1745846416369,444.0,0.00039178,30]
[359228199,1745846416586,444.0,0.00039178,30]
[359228200,1745846416746,444.0,0.00039178,30]
[359228201,1745846416903,444.0,0.00039178,30]
[359228202,1745846417498,444.0,0.00039178,30]
[359228203,1745846417588,444.0,0.00039178,30]
[359228204,1745846417844,444.0,0.00039178,30]
[359228205,1745846417980,444.0,0.00039178,30]
[359228206,1745846418164,448.12459054,0.00039178,30]
[359228207,1745846419241,500.0,0.00039178,30]
[359228208,1745846419430,500.0,0.00039178,30]
[359228209,1745846419610,500.0,0.00039178,30]
[359228210,1745846419783,405.50333953,0.00039178,30]
[359228211,1745846420919,1938.0,0.00039178,30]
[359228212,1745846420978,1938.0,0.00039178,30]
[359228213,1745846421149,1938.0,0.00039178,30]
[359228214,1745846421366,1938.0,0.00039178,30]
[359228215,1745846421615,1938.0,0.00039178,30]
[359228216,1745846421957,1938.0,0.00039178,30]
[359228217,1745846422204,1938.0,0.00039178,30]
[359228218,1745846422392,1938.0,0.00039178,30]
[359228219,1745846422682,1938.0,0.00039178,30]
[359228220,1745846422789,1938.0,0.00039178,30]
[359228221,1745846423015,1938.0,0.00039178,30]
[359228222,1745846423198,1938.0,0.00039178,30]
[359228223,1745846423408,1679.84687825,0.00039178,30]
[359228225,1745846476123,213.42665177,0.00036986,60]
[359228280,1745846736501,10000.0,9e-05,2]
[359228281,1745846736523,6473.77385123,9e-05,2]
[359228282,1745846841433,251.12176972,0.000101,2]
[359228283,1745846876130,200.0,0.00018988,2]
[359228306,1745846948751,457.94,0.00036986,60]
[359228307,1745847001138,250.0,0.00017,2]
[359228308,1745847002063,300.0,0.00019,2]
[359228309,1745847005719,1000.0,0.00019018,2]
[359228329,1745847031997,-492.16057301,0.00019435,2]
[359228331,1745847032009,-282.52499996,0.00019435,2]
[359228335,1745847032028,-7.83442703,0.00019435,2]
[359228338,1745847032038,-200.0,0.00019451,2]
[359228340,1745847032047,-200.0,0.0001955,2]
[359228343,1745847032056,-12.35559116,0.00019556,2]
[359228348,1745847037660,-154.37440884,0.00019556,2]
[359228349,1745847037670,-200.25696919,0.0001974,2]
[359228350,1745847037680,-296.64686633,0.00019799,2]
[359228351,1745847037771,-50.83401677,0.00019799,2]
[359228352,1745847037780,-387.92598207,0.00019799,2]
[359228372,1745847039963,-1612.07401793,0.00019799,2]
[359228373,1745847039972,-500.0,0.00019836,2]
[359228374,1745847039982,-200.0,0.0001984,2]
[359228375,1745847039991,-206.65425144,0.00019886,2]
[359228376,1745847040003,-203.0,0.00019892,2]
[359228377,1745847040013,-1200.0,0.00019898,2]
[359228378,1745847040022,-300.0,0.00019899,2]
[359228379,1745847040031,-243.35216652,0.000199,2]
[359228380,1745847040040,-168.26335106,0.000199,2]
[359228381,1745847040050,-213.56751349,0.000199,2]
[359228382,1745847040059,-279.77879818,0.000199,2]
[359228383,1745847040147,-476.34109951,0.000199,2]
[359228399,1745847043094,-170.85745292,0.000199,2]
[359228400,1745847043104,-610.628,0.00019916,2]
[359228401,1745847043113,-1220.901,0.00019916,2]
[359228402,1745847043123,-1225.366,0.00019953,2]
[359228403,1745847043135,-207.4,0.00019953,2]
[359228404,1745847043145,-571.78370186,0.00019971,2]
[359228405,1745847043154,-850.0,0.00019971,2]
[359228406,1745847043164,-151.0,0.00019972,2]
[359228407,1745847043174,-233.841772,0.00019972,2]
[359228409,1745847043183,-151.0,0.00019972,2]
[359228411,1745847043192,-37109.8594316,0.00019972,2]
[359228414,1745847045595,-9427.7085683,0.00019972,2]
[359228415,1745847045605,-164.258331,0.00019972,2]
[359228416,1745847045616,-151.0,0.00019972,2]
[359228417,1745847045626,-151.0,0.00019972,2]
[359228418,1745847045635,-11164.0784241,0.00019972,2]
[359228419,1745847045644,-151.0,0.00019972,2]
[359228420,1745847045654,-253.933853,0.00019972,2]
[359228421,1745847045663,-5695.7454506,0.00019972,2]
[359228422,1745847045672,-151.0,0.00019972,2]
[359228423,1745847045681,-151.0,0.00019972,2]
[359228424,1745847045691,-151.0,0.00019972,2]
[359228425,1745847045700,-151.0,0.00019972,2]
[359228426,1745847045710,-45374.2214999,0.00019972,2]
[359228427,1745847045719,-34434.9269935,0.00019972,2]
[359228428,1745847045728,-7243.9032493,0.00019972,2]
[359228429,1745847045737,-515.832588,0.00019972,2]
[359228430,1745847045746,-515.832588,0.00019972,2]
[359228431,1745847045756,-151.0,0.00019972,2]
[359228432,1745847045765,-216.923689,0.00019972,2]
[359228433,1745847045775,-151.0,0.00019972,2]
[359228434,1745847045784,-151.0,0.00019972,2]
[359228435,1745847045794,-151.0,0.00019972,2]
[359228436,1745847045802,-151.0,0.00019972,2]
[359228437,1745847045811,-151.0,0.00019972,2]
[359228438,1745847045821,-151.0,0.00019972,2]
[359228439,1745847045830,-164.34446,0.00019972,2]
[359228440,1745847045843,-319.914734,0.00019972,2]
[359228441,1745847045852,-57235.90722019,0.00019972,2]
[359228442,1745847045862,-199.95781609,0.00019972,2]
[359228443,1745847045871,-424.5954692,0.00019972,2]
[359228444,1745847045881,-503.20345874,0.00019973,2]
[359228445,1745847045890,-513.60280264,0.00019973,2]
[359228446,1745847045899,-558.63313616,0.00019973,2]
[359228447,1745847045908,-507.9872631,0.00019973,2]
[359228448,1745847045920,-3188.27,0.00019976,2]
[359228449,1745847045930,-4034.22431303,0.00019986,2]
[359228450,1745847045939,-215.7565624,0.00019986,2]
[359228451,1745847045949,-151.42352,0.00019986,2]
[359228452,1745847045958,-151.0,0.00019986,2]
[359228453,1745847045969,-151.0,0.00019986,2]
[359228454,1745847045978,-151.0,0.00019986,2]
[359228455,1745847045987,-151.0,0.00019986,2]
[359228456,1745847045998,-238.578019,0.00019986,2]
[359228457,1745847046007,-151.0,0.00019986,2]
[359228458,1745847046018,-151.0,0.00019986,2]
[359228459,1745847046027,-151.0,0.00019986,2]
[359228460,1745847046036,-151.0,0.00019986,2]
[359228461,1745847046046,-151.0,0.00019986,2]
[359228462,1745847046055,-151.0,0.00019986,2]
[359228463,1745847046065,-171.296414,0.00019986,2]
[359228464,1745847046074,-47121.2074666,0.00019986,2]
[359228465,1745847046084,-151.0,0.00019986,2]
[359228466,1745847046093,-151.0,0.00019986,2]
[359228467,1745847046102,-262.107506,0.00019986,2]
[359228468,1745847046111,-151.0,0.00019986,2]
[359228469,1745847046120,-186.508128,0.00019986,2]
[359228470,1745847046130,-11289.8837907,0.00019986,2]
[359228471,1745847046140,-151.0,0.00019986,2]
[359228472,1745847046149,-151.0,0.00019986,2]
[359228473,1745847046159,-151.0,0.00019986,2]
[359228474,1745847046168,-151.0,0.00019986,2]
[359228475,1745847046177,-151.0,0.00019986,2]
[359228476,1745847046187,-151.0,0.00019986,2]
[359228477,1745847046197,-151.0,0.00019986,2]
[359228478,1745847046206,-5759.9294627,0.00019986,2]
[359228479,1745847046215,-151.0,0.00019986,2]
[359228480,1745847046224,-151.0,0.00019986,2]
[359228481,1745847046234,-151.0,0.00019986,2]
[359228482,1745847046243,-214.499332,0.00019986,2]
[359228483,1745847046252,-151.0,0.00019986,2]
[359228484,1745847046262,-151.0,0.00019986,2]
[359228485,1745847046271,-151.0,0.00019986,2]
[359228486,1745847046280,-151.0,0.00019986,2]
[359228487,1745847046290,-151.667944,0.00019986,2]
[359228488,1745847046299,-45885.5328999,0.00019986,2]
[359228489,1745847046308,-34822.9660639,0.00019986,2]
[359228490,1745847046317,-7325.5330864,0.00019986,2]
[359228491,1745847046327,-515.832588,0.00019986,2]
[359228492,1745847046336,-515.832588,0.00019986,2]
[359228493,1745847046345,-515.832588,0.00019986,2]
[359228494,1745847046354,-515.832588,0.00019986,2]
[359228495,1745847046363,-515.832588,0.00019986,2]
[359228496,1745847046372,-515.832588,0.00019986,2]
[359228497,1745847046382,-151.0,0.00019986,2]
[359228498,1745847046521,-151.0,0.00019986,2]
[359228499,1745847046531,-151.0,0.00019986,2]
[359228500,1745847046540,-151.0,0.00019986,2]
[359228501,1745847046550,-151.0,0.00019986,2]
[359228502,1745847046559,-151.0,0.00019986,2]
[359228503,1745847046568,-151.0,0.00019986,2]
[359228504,1745847046578,-151.0,0.00019986,2]
[359228505,1745847046587,-151.0,0.00019986,2]
[359228506,1745847046596,-151.0,0.00019986,2]
[359228507,1745847046605,-181.638372,0.00019986,2]
[359228508,1745847046615,-151.0,0.00019986,2]
[359228509,1745847046624,-151.0,0.00019986,2]
[359228510,1745847046634,-151.0,0.00019986,2]
[359228511,1745847046645,-276.582058,0.00019986,2]
[359228512,1745847046654,-151.0,0.00019986,2]
[359228513,1745847046664,-151.0,0.00019986,2]
[359228514,1745847046673,-151.0,0.00019986,2]
[359228515,1745847046683,-151.0,0.00019986,2]
[359228516,1745847046692,-151.0,0.00019986,2]
[359228517,1745847046702,-151.0,0.00019986,2]
[359228518,1745847046711,-151.0,0.00019986,2]
[359228519,1745847046720,-151.0,0.00019986,2]
[359228520,1745847046730,-151.0,0.00019986,2]
[359228521,1745847046739,-151.0,0.00019986,2]
[359228522,1745847046749,-151.0,0.00019986,2]
[359228523,1745847046758,-151.0,0.00019986,2]
[359228524,1745847046767,-268.289612,0.00019986,2]
[359228525,1745847046776,-319.914734,0.00019986,2]
[359228526,1745847046786,-319.914734,0.00019986,2]
[359228527,1745847046796,-319.914734,0.00019986,2]
[359228528,1745847046805,-319.914734,0.00019986,2]
[359228529,1745847046814,-3188.27,0.0001999,2]
[359228530,1745847046823,-3423.66939055,0.0001999,2]
[359228531,1745847046925,-811.26222896,0.0001999,2]
[359228532,1745847046938,-1141.228,0.0001999,2]
[359228533,1745847046952,-462.052,0.0001999,2]
[359228535,1745847054758,400.0,0.00019,2]
[359228536,1745847112678,618.2440625,0.00019234,2]
[359228537,1745847206814,1500.0,0.00032877,120]
[359228538,1745847297438,200.0,0.0003,30]
[359228539,1745847305195,506.86031655,0.00019,2]
[359228540,1745847305216,285.08968345,0.00019,2]
[359228541,1745847305905,250.0,0.00018976,7]
[359228542,1745847307369,791.95,0.00019,2]
[359228543,1745847412013,212.0,0.0003698,60]
[359228544,1745847454438,312.155825,0.0003698,60]
[359228545,1745847588828,758.58,0.00017142,2]
[359228546,1745847655562,153.72,0.00019011,2]
[359228548,1745847828487,151.64630561,0.000197,14]
[359228552,1745848116143,1000.0,0.00019032,2]
[359228559,1745848231885,-758.58,0.00019406,2]
[359228560,1745848231897,-250.0,0.00019425,2]
[359228561,1745848231907,-142.52002,0.00019425,2]
[359228562,1745848238123,-57.47998,0.00019425,2]
[359228564,1745848238132,-176.51281847,0.00019454,2]
[359228566,1745848238142,-161.82,0.00019554,2]
[359228568,1745848238154,-103.96912268,0.00019578,2]
[359228573,1745848238201,-514.27493983,0.00019578,2]
[359228575,1745848238211,-176.51281845,0.00019665,2]
[359228577,1745848238220,-150.0,0.00019671,2]
[359228579,1745848238229,-230.18597018,0.00019789,2]
[359228581,1745848238239,-153.18573186,0.00019793,2]
[359228583,1745848238248,-339.2578314,0.00019799,2]
[359228585,1745848238258,-4333.5363,0.000198,2]
[359228586,1745848238267,-176.51281845,0.00019876,2]
[359228588,1745848238276,-1699.92982857,0.0001989,2]
[359228590,1745848238289,-1699.92982851,0.00019891,2]
[359228592,1745848238298,-1699.92982851,0.00019892,2]
[359228594,1745848238308,-1699.92982851,0.00019893,2]
[359228596,1745848238317,-1699.92982851,0.00019894,2]
[359228598,1745848238327,-1699.92982851,0.00019896,2]
[359228600,1745848238336,-1699.92982851,0.00019897,2]
[359228602,1745848238346,-1699.92982851,0.00019898,2]
[359228604,1745848238355,-483.41623275,0.00019899,2]
[359228608,1745848238392,-1216.51359576,0.00019899,2]
[359228610,1745848238403,-1200.0,0.00019899,2]
[359228612,1745848238412,-300.0,0.00019899,2]
[359228614,1745848238422,-249.86841391,0.000199,2]
[359228616,1745848238431,-168.26252116,0.000199,2]
[359228618,1745848238440,-168.26335103,0.000199,2]
[359228620,1745848238450,-579.8,0.000199,2]
[359228622,1745848238459,-799.54,0.000199,2]
[359228624,1745848238469,-1623.48,0.000199,2]
[359228626,1745848238478,-328.73717156,0.000199,2]
[359228628,1745848238487,-180.82247001,0.000199,2]
[359228630,1745848238496,-2229.32603051,0.000199,2]
[359228632,1745848238506,-207.4,0.00019953,2]
[359228634,1745848238515,-570.24934197,0.00019973,2]
[359228636,1745848238525,-1000.0,0.00019975,2]
[359228638,1745848238535,-13162.48766595,0.00019976,2]
[359228648,1745848238626,-1296.55891919,0.00019976,2]
[359228651,1745848238637,-1234.4079256,0.00019976,2]
[359228653,1745848238650,-1342.03950666,0.00019976,2]
[359228655,1745848238659,-1859.607164,0.00019976,2]
[359228657,1745848238671,-2257.6329651,0.00019976,2]
[359228659,1745848238680,-5451.9270349,0.00019976,2]
[359228666,1745848238735,-3530.49880327,0.00019976,2]
[359228784,1745848240728,-354.47209109,0.00019976,2]
[359228785,1745848240740,-16869.72801824,0.00019976,2]
[359228786,1745848240750,-4431.24653533,0.00019976,2]
[359228787,1745848240787,-1466.73162127,0.00019976,2]
[359228788,1745848240796,-2106.8692742,0.00019976,2]
[359228789,1745848240805,-150.0,0.00019983,2]
[359228790,1745848240815,-16473.40227353,0.00019986,2]
[359228806,1745848243162,-1699.92982851,0.000199,2]
[359228807,1745848243172,-694.66264652,0.00019986,2]
[359228808,1745848243184,-6007.97979255,0.00019986,2]
[359228809,1745848243194,-5564.8499993,0.00019986,2]
[359228810,1745848243204,-35420.8007828,0.00019986,2]
[359228811,1745848243214,-7971.6904315,0.00019986,2]
[359228812,1745848243224,-2842.8920959,0.00019986,2]
[359228813,1745848243234,-34294.48180759,0.0001999,2]
[359228814,1745848243244,-196.0,0.0001999,2]
[359228815,1745848243254,-196.0,0.0001999,2]
[359228816,1745848243263,-151.0,0.0001999,2]
[359228817,1745848243273,-151.591433,0.0001999,2]
[359228819,1745848243283,-151.0,0.0001999,2]
[359228821,1745848243299,-272.79984,0.0001999,2]
[359228823,1745848243308,-1155.988604,0.0001999,2]
[359228825,1745848243318,-272.79984,0.0001999,2]
[359228827,1745848243328,-1155.988604,0.0001999,2]
[359228828,1745848243338,-239.93605,0.0001999,2]
[359228829,1745848243348,-239.93605,0.0001999,2]
[359228830,1745848243358,-151.0,0.0001999,2]
[359228831,1745848243369,-151.0,0.0001999,2]
[359228832,1745848243380,-151.0,0.0001999,2]
[359228833,1745848243389,-185.81982,0.0001999,2]
[359228834,1745848243403,-500.0,0.00019999,2]
[359228835,1745848243413,-500.0,0.00019999,2]
[359228836,1745848243423,-500.0,0.00019999,2]
[359228837,1745848243434,-500.0,0.00019999,2]
[359228838,1745848243444,-1000.0,0.00019999,2]
[359228839,1745848243454,-11021.97324693,0.00019999,2]
[359228840,1745848243464,-1000.0,0.00019999,2]
[359228841,1745848243474,-1000.0,0.00019999,2]
[359228842,1745848243483,-325.63613251,0.00019999,2]
[359228843,1745848243495,-1000.0,0.00019999,2]
[359228844,1745848243504,-3776.43326384,0.00019999,2]
[359228845,1745848243587,-8723.56673616,0.00019999,2]
[359228846,1745848243597,-10500.0,0.00019999,2]
[359228847,1745848243606,-151.0,0.00019999,2]
[359228848,1745848243616,-1000.0,0.00019999,2]
[359228849,1745848243625,-151.0,0.00019999,2]
[359228850,1745848243638,-272.79984,0.00019999,2]
[359228851,1745848243650,-1155.988604,0.00019999,2]
[359228852,1745848243660,-272.79984,0.00019999,2]
[359228853,1745848243669,-1155.988604,0.00019999,2]
[359228854,1745848243679,-239.93605,0.00019999,2]
[359228855,1745848243688,-239.93605,0.00019999,2]
[359228856,1745848243698,-309.499552,0.00019999,2]
[359228857,1745848243707,-309.499552,0.00019999,2]
[359228858,1745848243716,-151.0,0.00019999,2]
[359228859,1745848243727,-151.0,0.00019999,2]
[359228860,1745848243737,-150.0,0.00019999,2]
[359228861,1745848243747,-150.0,0.00019999,2]
[359228862,1745848243756,-150.0,0.00019999,2]
[359228863,1745848243766,-150.0,0.00019999,2]
[359228864,1745848243775,-150.0,0.00019999,2]
[359228866,1745848243784,-150.0,0.00019999,2]
[359228867,1745848243793,-150.0,0.00019999,2]
[359228868,1745848243803,-150.0,0.00019999,2]
[359228869,1745848243812,-150.0,0.00019999,2]
[359228870,1745848243821,-150.0,0.00019999,2]
[359228871,1745848243830,-150.0,0.00019999,2]
[359228872,1745848243839,-150.0,0.00019999,2]
[359228873,1745848243848,-150.0,0.00019999,2]
[359228874,1745848243857,-151.0,0.00019999,2]
[359228875,1745848243867,-151.0,0.00019999,2]
[359228876,1745848243876,-151.0,0.00019999,2]
[359228877,1745848243886,-832.0,0.0002,2]
[359228878,1745848243897,-2017.11215651,0.0002,2]
[359228879,1745848243905,-215.75656238,0.0002,2]
[359228880,1745848243913,-77619.42505469,0.0002,2]
[359228881,1745848243983,-1300.31454034,0.0002,2]
[359228882,1745848243992,-62846.13236253,0.0002,2]
[359228883,1745848244021,-86004.57873683,0.0002,2]
[359228884,1745848244031,-1421.005,0.0002,2]
[359228891,1745848245786,-9481.73563,0.0002,2]
[359228892,1745848245800,-663.158519,0.0002,2]
[359228893,1745848245910,-574.42500698,0.0002,2]
[359228894,1745848246105,-7493.82775389,0.0002,2]
[359228895,1745848246117,-4916.67272,0.0002,2]
[359228896,1745848246129,-886.72,0.0002,2]
[359228897,1745848246143,-66210.784,0.0002,2]
[359228898,1745848246159,-575.036999,0.0002,2]
[359228899,1745848246202,-2051.0,0.0002,2]
[359228915,1745848411864,250.0,0.00019162,7]
[359228916,1745848538708,263.24,0.00027425,30]
[359228917,1745848651482,682.72,0.00017102,2]
[359228918,1745848652587,-183.09546078,0.00019365,2]
[359228919,1745848652996,1500.0,0.00032877,120]
[359228920,1745848656357,-237.28,0.00019365,2]
[359228921,1745848665119,-173.0127,0.00019365,2]
[359228922,1745848669254,-89.33183922,0.00019365,2]
[359228923,1745848750081,531.78,0.00019128,2]
[359228926,1745848833281,250.0,0.00017,2]
[359228927,1745848834580,300.0,0.00019,2]
[359228928,1745848858896,363.25,0.00019019,2]
[359228929,1745849095733,10017.0,0.0003698,60]
[359228930,1745849127593,156.0,0.00036986,60]
[359228932,1745849248547,200.76,0.000369,60]
[359228933,1745849288457,1000.0,0.00018976,2]
[359228934,1745849326844,359.17868083,0.0003698,60]
[359228957,1745849432046,-173.0127,0.00019443,2]
[359228958,1745849432056,-200.0,0.00019541,2]
[359228959,1745849432066,-166.54,0.0001959,2]
[359228960,1745849432076,-420.37546078,0.000197,2]
[359228961,1745849432086,-121.79347981,0.00019749,2]
[359228962,1745849432099,-28.20652019,0.00019749,2]
[359228963,1745849432109,-1727.09347981,0.00019779,2]
[359228964,1745849432161,-1144.90652019,0.00019779,2]
[359228965,1745849432171,-5.04345981,0.00019781,2]
[359228966,1745849432183,-276.95654019,0.00019781,2]
[359228967,1745849432195,-331.4459322,0.00019799,2]
[359228968,1745849432204,-150.0,0.00019817,2]
[359228969,1745849432214,-150.0,0.00019822,2]
[359228970,1745849432224,-91.59839761,0.00019878,2]
[359228971,1745849432259,-58.40160239,0.00019878,2]
[359228972,1745849432269,-155.82213598,0.00019886,2]
[359228973,1745849432278,-150.0,0.00019889,2]
[359228974,1745849432288,-150.0,0.00019889,2]
[359228975,1745849432298,-127.38430589,0.00019899,2]
[359228976,1745849432310,-1072.61569411,0.00019899,2]
[359228977,1745849432320,-300.0,0.00019899,2]
[359228978,1745849432329,-214.17292626,0.000199,2]
[359228979,1745849432338,-168.26335103,0.000199,2]
[359228980,1745849432350,-184.87820631,0.000199,2]
[359228981,1745849432359,-158.21966125,0.000199,2]
[359228982,1745849432369,-219.15811436,0.000199,2]
[359228983,1745849432379,-4812.68764585,0.000199,2]
[359228984,1745849432388,-189.95194323,0.000199,2]
[359228986,1745849432398,-937.75054643,0.000199,2]
[359228988,1745849432407,-1151.20191117,0.00019914,2]
[359229002,1745849438085,-135.79808883,0.00019914,2]
[359229003,1745849438094,-865.0,0.00019916,2]
[359229004,1745849438105,-605.625,0.00019916,2]
[359229005,1745849438115,-153.0,0.00019916,2]
[359229006,1745849438123,-150.0,0.00019918,2]
[359229007,1745849438132,-207.4,0.00019953,2]
[359229008,1745849438140,-622.82275545,0.00019973,2]
[359229009,1745849438149,-150.0,0.00019973,2]
[359229010,1745849438158,-1000.0,0.00019985,2]
[359229011,1745849438167,-1000.0,0.00019985,2]
[359229012,1745849438175,-593.06868746,0.00019985,2]
[359229013,1745849438400,-558.21231254,0.00019985,2]
[359229014,1745849438410,-730.83157974,0.00019986,2]